bitfinex/quotes_ETHUSD_20251126
["timestamp","ask_amount","ask_price","bid_price","bid_amount"]
[1764171970191,0.221,2918.1,2918.0,0.001]
[1764171970618,0.92232377,2919.2,2918.0,0.9513]
[1764171970785,0.99774858,2919.1,2918.1,0.1974]
[1764171970984,3.366891,2918.9,2918.1,0.1974]
[1764171971222,0.53834858,2918.8,2918.1,0.1974]
[1764171971399,0.4594,2919.0,2918.0,0.001]
[1764171971719,8.87984027,2918.8,2918.0,0.001]
[1764171971927,0.31722067,2918.7,2918.0,0.001]
[1764171972219,0.221,2918.6,2918.0,0.001]
[1764171972398,3.64731329,2918.6,2918.0,0.001]
[1764171972719,4.459592,2919.0,2918.1,0.1974]
[1764171973044,0.1915,2919.4,2918.5,0.4636]
[1764171973318,0.53795938,2919.3,2918.5,0.4636]
[1764171973519,0.31695938,2919.2,2918.1,0.24675906]
[1764171973725,0.221,2919.2,2918.1,0.24675906]
[1764171974291,0.221,2919.2,2918.2,3.42676992]
[1764171974489,3.42556188,2919.3,2918.1,0.24675906]
[1764171974828,0.53783868,2919.2,2918.1,3.67364287]
[1764171975031,20.27929,2919.0,2918.8,0.003]
[1764171975207,0.31683868,2918.9,2918.8,0.003]
[1764171975524,0.221,2918.9,2918.8,0.003]
[1764171976324,0.6962,2918.9,2918.8,0.003]
[1764171977650,1.178,2918.9,2918.8,0.003]
[1764171977854,1.90678291,2918.9,2918.8,0.003]
[1764171978219,6.28765702,2918.9,2918.8,0.003]
[1764171978426,9.71360515,2918.9,2918.8,0.003]
[1764171978952,22.60740041,2918.9,2918.8,0.003]
[1764171979154,22.06341615,2918.9,2918.8,0.003]
[1764171979323,18.41646802,2918.9,2918.8,0.003]
[1764171979524,1.27358519,2918.9,2918.8,0.003]
[1764171979845,4.50892319,2918.9,2918.8,0.003]
[1764171980048,4.50892319,2918.9,2918.0,0.001]
[1764171980049,3.174504,2918.8,2918.0,0.001]
[1764171980249,8.94757118,2917.6,2916.9,0.193]
[1764171980570,4.15150812,2917.5,2916.9,0.193]
[1764171980758,8.658067,2917.4,2916.0,0.193]
[1764171980927,0.316255,2917.3,2916.0,0.193]
[1764171981124,0.798055,2917.3,2916.0,3.62235438]
[1764171981339,0.4818,2917.3,2916.0,0.193]
[1764171981627,0.79840785,2917.2,2916.0,0.193]
[1764171981857,0.221,2917.1,2916.0,3.62234225]
[1764171982057,0.221,2917.1,2916.0,0.193]
[1764171982244,0.4818,2917.2,2916.0,3.72141434]
[1764171982448,0.221,2917.0,2916.0,7.15076962]
[1764171982775,0.221,2917.0,2916.0,0.29205906]
[1764171982942,0.1867,2916.9,2916.0,0.193]
[1764171983533,0.221,2916.8,2916.0,3.62233917]
[1764171983730,0.221,2916.8,2916.0,3.62232216]
[1764171984271,0.1867,2916.9,2916.0,0.193]
[1764171984272,0.221,2916.7,2916.0,0.193]
[1764171984689,0.221,2916.7,2915.1,3.54324512]
[1764171984690,0.7028,2916.6,2915.1,0.11290286]
[1764171984846,0.221,2916.5,2915.2,0.09905906]
[1764171985046,0.7028,2916.5,2915.1,0.11290286]
[1764171985247,0.53757457,2916.4,2915.1,6.97372346]
[1764171985448,0.221,2916.3,2916.0,0.001]
[1764171985679,0.96503712,2916.6,2916.0,0.001]
[1764171985680,0.4818,2916.5,2916.0,0.001]
[1764171985855,9.35307518,2916.8,2916.0,0.001]
[1764171985856,0.4818,2916.8,2916.0,0.001]
[1764171986065,0.53835669,2916.7,2916.0,0.001]
[1764171986248,0.31635669,2916.6,2916.0,0.001]
[1764171986671,0.79815669,2916.6,2916.0,0.001]
[1764171986871,0.31635669,2916.5,2916.0,0.001]
[1764171987181,0.4818,2916.6,2916.0,0.001]
[1764171987494,0.31680292,2916.5,2916.0,0.001]
[1764171987658,0.1867,2917.5,2916.1,0.09905906]
[1764171987985,0.53887629,2917.4,2916.4,0.09905906]
[1764171988283,0.31687629,2917.3,2916.4,0.09905906]
[1764171988484,0.53887629,2917.2,2916.2,0.09905906]
[1764171988784,0.31687629,2917.1,2916.2,6.95728862]
[1764171988984,0.31687629,2917.1,2916.2,0.09905906]
[1764171989186,0.53887629,2917.0,2916.1,3.42916566]
[1764171989482,0.31687629,2916.9,2916.0,0.001]
[1764171989682,0.31687629,2916.8,2916.0,0.001]
[1764171989885,0.31687629,2916.7,2916.0,0.001]
[1764171990059,0.31687629,2916.6,2916.0,0.001]
[1764171990263,0.1867,2916.9,2916.0,0.001]
[1764171990493,0.31781421,2916.8,2916.0,0.001]
[1764171990773,0.53981421,2916.7,2916.0,0.001]
[1764171990986,0.4752,2916.1,2916.0,0.001]
[1764171991188,25.75617439,2916.1,2916.0,0.001]
[1764171991350,18.06358853,2916.1,2916.0,0.001]
[1764171991552,2.22903635,2916.1,2916.0,0.001]
[1764171991786,2.00703635,2916.1,2916.0,0.001]
[1764171992086,0.31781421,2916.1,2916.0,0.001]
[1764171992381,0.73224931,2916.8,2916.0,0.001]
[1764171992601,0.3178737,2916.7,2916.0,6.85971056]
[1764171992889,0.222,2916.7,2916.2,0.09905906]
[1764171993246,0.31812971,2916.6,2916.2,0.09905906]
[1764171993479,0.222,2916.7,2916.2,0.09905906]
[1764171994003,0.1867,2916.9,2916.0,0.001]
[1764171994163,0.3180718,2916.8,2916.0,0.001]
[1764171994356,0.222,2916.9,2916.0,0.001]
[1764171994357,0.3180718,2916.7,2916.0,0.001]
[1764171994551,0.3180718,2916.6,2916.0,0.001]
[1764171994892,0.4087,2916.9,2916.0,0.001]
[1764171994893,0.222,2916.9,2916.1,0.09905906]
[1764171995096,0.4752,2916.1,2916.0,0.001]
[1764171995298,1.102704,2916.1,2916.0,0.001]
[1764171995506,2.05650209,2916.1,2916.0,0.001]
[1764171995789,2.23047457,2916.1,2916.0,0.001]
[1764171995978,1.52667457,2916.1,2916.0,0.001]
[1764171996291,2.23047457,2916.1,2916.0,0.001]
[1764171996785,5.65971225,2916.1,2916.0,0.001]
[1764171997012,1.05147457,2916.1,2916.0,0.001]
[1764171997189,0.54013691,2916.1,2916.0,0.001]
[1764171997667,1.49713691,2916.1,2916.0,0.001]
[1764171997855,2.00874283,2916.1,2916.0,0.001]
[1764171998067,0.54013691,2916.1,2916.0,0.001]
[1764171998298,1.49713691,2916.1,2916.0,0.001]
[1764171998500,2.23071078,2916.1,2916.0,0.001]
[1764171999162,1.74891078,2916.1,2916.0,0.001]
[1764171999896,5.65994846,2916.1,2916.0,0.001]
[1764172000079,6.56806582,2916.1,2916.0,0.001]
[1764172000792,3.13882814,2916.1,2916.0,0.001]
[1764172001093,5.65914846,2916.1,2916.0,0.001]
[1764172001456,2.22991078,2916.1,2916.0,0.001]
[1764172001793,1.52611078,2916.1,2916.0,0.001]
[1764172001954,0.53933691,2916.1,2916.0,0.001]
[1764172002356,0.31733691,2916.1,2916.0,0.001]
[1764172002658,0.8905,2916.9,2916.0,0.001]
[1764172002999,0.73248278,2916.8,2916.0,0.001]
[1764172003284,1.28157815,2916.7,2916.0,0.001]
[1764172003490,0.73248278,2916.6,2916.0,0.001]
[1764172004000,0.73248278,2916.5,2916.0,0.001]
[1764172004215,0.222,2916.4,2916.0,0.001]
[1764172004371,0.73336917,2916.7,2916.0,0.001]
[1764172004562,0.222,2916.5,2916.1,0.09905906]
[1764172004764,0.91257721,2917.2,2916.1,0.09905906]
[1764172004765,0.7334461,2917.1,2916.2,6.85824016]
[1764172004966,0.9554461,2917.0,2916.2,6.85824016]
[1764172005191,0.222,2917.0,2916.1,3.52828719]
[1764172005360,0.222,2917.0,2916.1,0.09905906]
[1764172005561,0.222,2917.0,2916.1,3.52828846]
[1764172006481,0.95593387,2917.0,2916.1,3.52828846]
[1764172006683,0.92073387,2916.9,2916.1,3.52829503]
[1764172006887,0.73393387,2916.8,2916.1,0.09905906]
[1764172007098,0.1868,2916.9,2916.1,0.09905906]
[1764172007405,0.7347134,2916.8,2916.1,0.09905906]
[1764172007598,0.7347134,2916.8,2916.0,3.43029252]
[1764172007800,0.7347134,2916.8,2916.0,0.001]
[1764172008005,0.7347134,2916.7,2916.0,0.001]
[1764172008180,0.7347134,2916.6,2916.0,0.001]
[1764172008383,0.9567134,2916.5,2916.0,0.001]
[1764172008687,0.7347134,2916.4,2916.0,0.001]
[1764172008894,0.7347134,2916.3,2916.0,0.001]
[1764172009092,0.7347134,2916.2,2916.0,0.001]
[1764172009290,1.13457721,2916.5,2916.0,0.001]
[1764172009498,0.73670195,2916.4,2916.0,0.001]
[1764172009684,0.73670195,2916.3,2916.0,0.001]
[1764172009881,0.73670195,2916.2,2916.0,0.001]
[1764172010110,4.44946753,2918.1,2916.0,0.10005906]
[1764172010111,0.91257721,2916.8,2916.0,0.10005906]
[1764172010269,0.95920795,2916.7,2916.0,0.001]
[1764172010474,5.26007721,2916.1,2915.1,0.11290286]
[1764172010697,0.405504,2915.7,2915.1,0.11290286]
[1764172010898,0.01316503,2915.9,2915.4,8.94757118]
[1764172011210,3.04483395,2916.7,2915.1,0.11290286]
[1764172011211,0.223,2916.7,2915.6,0.09905906]
[1764172011413,3.046438,2916.6,2915.1,0.11290286]
[1764172011625,7.333234,2916.4,2915.1,0.11290286]
[1764172011915,0.7821334,2916.3,2915.1,0.11290286]
[1764172012077,7.258361,2916.1,2915.1,0.11290286]
[1764172012276,0.54269534,2916.0,2915.1,0.11290286]
[1764172012473,0.54269534,2915.9,2915.1,0.11290286]
[1764172012672,0.31969534,2915.8,2915.1,0.11290286]
[1764172012904,0.31969534,2915.7,2915.1,3.54327541]
[1764172013109,0.31969534,2915.6,2915.1,0.11290286]
[1764172013406,0.31969534,2915.5,2915.1,0.11290286]
[1764172013703,0.31969534,2915.4,2915.1,0.11290286]
[1764172013902,0.31969534,2915.3,2915.1,0.11290286]
[1764172014106,0.223,2915.7,2915.1,0.11290286]
[1764172014303,0.31950174,2915.6,2915.1,0.11290286]
[1764172014527,0.31950174,2915.5,2915.1,0.11290286]
[1764172014726,0.31950174,2915.4,2915.1,0.11290286]
[1764172014930,0.31950174,2915.3,2915.1,0.11290286]
[1764172015225,1.00800174,2915.2,2915.1,0.11290286]
[1764172015731,0.405504,2915.1,2914.7,0.003]
[1764172016027,0.405504,2915.1,2914.3,0.00178047]
[1764172016028,0.405504,2914.7,2914.3,0.00178047]
[1764172016327,0.54250174,2914.6,2914.3,0.00178047]
[1764172016545,0.31950174,2914.5,2914.3,0.00178047]
[1764172016699,0.31950174,2914.4,2914.3,0.00178047]
[1764172017212,0.31950174,2914.5,2914.3,0.00178047]
[1764172017397,0.31950174,2914.4,2914.3,0.00178047]
[1764172017742,0.54250174,2914.4,2914.3,0.00178047]
[1764172017895,0.31950174,2914.4,2914.3,0.00178047]
[1764172018095,0.223,2914.4,2914.3,0.00178047]
[1764172018319,0.78500174,2914.4,2914.3,0.00178047]
[1764172018501,1.00800174,2914.4,2914.3,0.00178047]
[1764172019128,0.78500174,2914.4,2914.3,0.00178047]
[1764172019330,0.4655,2914.4,2914.3,0.00178047]
[1764172019530,1.49505795,2914.4,2914.3,0.00178047]
[1764172020024,1.27205795,2914.4,2914.3,0.00178047]
[1764172020225,0.31845795,2914.4,2914.3,0.00178047]
[1764172020428,0.13751587,2916.5,2914.3,0.00178047]
[1764172020429,0.6749,2916.9,2914.4,1.13109811]
[1764172020642,0.31856188,2916.8,2915.2,0.72559411]
[1764172020854,0.31856188,2916.7,2916.0,0.09905906]
[1764172021028,0.002,2918.0,2916.1,0.405504]
[1764172021197,0.31882325,2917.4,2916.3,0.09905906]
[1764172021402,3.545996,2917.2,2915.8,0.09905906]
[1764172021701,3.545996,2917.2,2915.2,7.08359274]
[1764172021702,12.652291,2917.0,2915.6,0.09905906]
[1764172021970,11.460728,2916.8,2915.3,0.09905906]
[1764172022183,0.54182325,2916.7,2915.3,0.09905906]
[1764172022473,9.26639443,2916.6,2915.2,0.09905906]
[1764172022654,1.26776269,2916.5,2915.2,0.09905906]
[1764172022856,0.002,2915.9,2915.3,0.72559411]
[1764172023158,0.002,2915.9,2915.7,0.09905906]
[1764172023332,0.002,2915.9,2915.8,0.09905906]
[1764172024832,0.0012,2915.9,2915.8,4.25424367]
[1764172025172,0.0012,2915.9,2915.8,3.52864956]
[1764172025381,0.0012,2915.9,2915.8,4.25424367]
[1764172028534,0.0012,2915.9,2915.8,4.15518461]
[1764172028753,0.0012,2915.9,2915.8,4.25424367]
[1764172029342,0.0012,2915.9,2915.8,4.15518461]
[1764172029544,0.0012,2915.9,2915.4,3.43006105]
[1764172029745,0.0012,2915.9,2915.3,3.43013133]
[1764172030068,0.0012,2915.9,2915.4,0.09905906]
[1764172030588,0.0012,2915.9,2914.8,0.223]
[1764172030589,0.0012,2915.9,2915.6,0.09905906]
[1764172030885,0.0012,2915.9,2915.8,3.4295905]
[1764172031049,0.0012,2915.9,2915.8,4.25424367]
[1764172031252,0.0012,2915.9,2915.8,0.82465317]
[1764172031439,0.0012,2915.9,2915.8,4.25424367]
[1764172032074,0.0012,2915.9,2915.8,4.15518461]
[1764172032272,0.0012,2915.9,2915.8,4.25424367]
[1764172032967,0.0012,2915.9,2915.8,4.65974767]
[1764172033163,0.0012,2915.9,2915.8,4.25424367]
[1764172035156,0.0012,2915.9,2915.8,13.58176416]
[1764172035490,0.0003,2915.9,2915.8,13.58176416]
[1764172036582,0.0003,2915.9,2915.8,4.25424367]
[1764172037661,0.0003,2915.9,2915.8,4.65974767]
[1764172038798,0.0003,2915.9,2915.8,4.25424367]
[1764172039259,0.0003,2915.9,2915.6,0.09905906]
[1764172039451,0.0003,2915.9,2915.3,0.223]
[1764172039650,0.0003,2915.9,2915.6,0.09905906]
[1764172040277,0.1819,2915.9,2915.6,0.09905906]
[1764172040850,0.66,2915.9,2914.7,10.29265446]
[1764172041054,0.66,2915.9,2914.8,0.223]
[1764172041456,0.66,2915.9,2915.8,0.001]
[1764172041752,0.1819,2915.9,2915.8,0.001]
[1764172041989,1.1183,2915.9,2915.8,0.001]
[1764172043192,1.1183,2915.9,2915.8,0.10005906]
[1764172043193,0.0003,2915.9,2915.8,0.10005906]
[1764172043395,0.0003,2915.9,2915.8,0.72756306]
[1764172043596,0.1868,2917.8,2916.9,0.09905906]
[1764172043888,0.1868,2917.8,2916.6,0.405504]
[1764172043889,0.1868,2917.8,2917.1,0.09905906]
[1764172044184,0.6649,2917.8,2917.1,0.09905906]
[1764172044389,0.6649,2917.8,2916.8,0.09905906]
[1764172044554,0.4781,2917.7,2916.8,0.09905906]
[1764172044753,0.4781,2917.7,2916.9,0.09905906]
[1764172044963,0.4781,2917.7,2916.3,3.65190783]
[1764172045162,3.90550897,2917.7,2916.4,0.09905906]
[1764172045389,0.4092309,2917.6,2916.4,0.09905906]
[1764172045607,0.8873309,2917.6,2916.4,0.09905906]
[1764172045983,0.4781,2917.5,2916.4,0.09905906]
[1764172046402,0.1816,2916.5,2915.8,0.001]
[1764172046607,0.1816,2916.5,2915.8,3.43058045]
[1764172046757,0.1816,2916.5,2915.8,6.95923001]
[1764172047304,0.1816,2916.5,2915.8,6.95923908]
[1764172048790,0.1816,2916.5,2915.8,0.10005906]
[1764172048995,0.1816,2915.9,2915.8,0.001]
[1764172049497,0.1808,2915.9,2915.8,0.001]
[1764172049818,0.6597,2916.7,2915.8,0.10005906]
[1764172049980,0.4781,2916.6,2915.8,0.10005906]
[1764172050901,0.4781,2916.6,2915.8,0.001]
[1764172051273,0.1816,2916.7,2916.2,0.09905906]
[1764172051474,1.62103736,2917.9,2916.0,0.09905906]
[1764172051475,0.4781,2916.6,2916.0,0.09905906]
[1764172051680,0.4781,2916.6,2915.9,0.09905906]
[1764172052392,0.3183683,2916.5,2915.9,0.09905906]
[1764172052592,0.4781,2916.6,2915.9,0.09905906]
[1764172052789,0.31846409,2916.5,2915.9,0.09905906]
[1764172052988,0.4781,2916.6,2915.9,0.09905906]
[1764172053195,0.1816,2916.9,2915.8,0.001]
[1764172053196,0.4583,2916.0,2915.8,0.001]
[1764172053393,0.1816,2915.9,2915.8,3.43058773]
[1764172053582,0.4781,2916.3,2915.8,0.001]
[1764172053782,0.1816,2915.9,2915.8,0.001]
[1764172054007,0.6399,2915.9,2915.8,0.001]
[1764172054206,1.43643856,2915.9,2915.8,0.001]
[1764172054389,1.43635495,2915.9,2915.8,0.001]
[1764172055139,7.510252,2915.5,2913.9,0.003]
[1764172055429,0.1816,2914.4,2913.9,0.003]
[1764172055582,1.86753367,2915.4,2913.9,0.003]
[1764172055583,0.1816,2914.5,2913.9,0.003]
[1764172055982,0.6597,2914.5,2913.9,0.003]
[1764172056734,0.72559411,2915.6,2913.9,0.003]
[1764172056735,0.1816,2914.8,2913.9,0.003]
[1764172056893,0.4781,2914.5,2913.9,0.003]
[1764172057282,0.1816,2914.8,2913.9,0.003]
[1764172057516,0.6597,2915.4,2914.4,0.223]
[1764172057819,0.1816,2915.9,2914.6,0.72559411]
[1764172058020,0.1816,2915.9,2915.2,0.09905906]
[1764172058204,0.1816,2915.9,2915.0,0.223]
[1764172058412,0.1816,2915.9,2915.5,0.09905906]
[1764172058583,0.4781,2916.5,2915.5,0.09905906]
[1764172058779,0.3170874,2916.4,2915.5,0.09905906]
[1764172059025,0.3170874,2916.4,2915.0,0.223]
[1764172059178,0.4781,2916.3,2915.2,3.52931929]
[1764172059383,0.3170874,2916.2,2915.2,6.95961566]
[1764172059882,0.4781,2916.2,2915.5,0.09905906]
[1764172060128,0.002,2915.9,2915.3,0.72559411]
[1764172060332,0.002,2915.9,2915.8,0.09905906]
[1764172060513,0.002,2915.9,2915.6,0.09905906]
[1764172060691,0.002,2915.9,2915.6,0.32205906]
[1764172061219,0.002,2915.9,2915.7,3.42970813]
[1764172061406,0.002,2915.9,2915.7,6.85941626]
[1764172061589,0.002,2915.9,2915.7,3.42970813]
[1764172061994,0.002,2915.9,2915.6,3.75184924]
[1764172062308,0.002,2915.9,2915.3,0.72559411]
[1764172062309,0.1836,2915.9,2915.3,0.223]
[1764172062510,0.6617,2915.9,2914.5,10.29336078]
[1764172062696,0.6617,2915.9,2914.6,0.223]
[1764172062899,0.002,2915.9,2914.7,0.405504]
[1764172063229,0.002,2915.9,2915.8,3.52864956]
[1764172063629,0.002,2915.9,2915.8,0.09905906]
[1764172063929,0.002,2915.9,2915.7,0.09905906]
[1764172064335,0.002,2915.9,2915.6,3.42979821]
[1764172064543,0.002,2915.9,2915.7,0.09905906]
[1764172065222,0.002,2915.9,2915.8,3.4295905]
[1764172065425,0.002,2915.9,2915.8,4.65974767]
[1764172066201,0.002,2915.9,2915.8,4.47724367]
[1764172067796,0.002,2915.9,2915.8,4.88274767]
[1764172070135,0.002,2915.9,2915.8,4.0580945]
[1764172070340,0.002,2915.9,2915.8,4.15715356]
[1764172070542,0.002,2915.9,2915.8,4.88274767]
[1764172071721,0.002,2916.2,2916.1,0.405504]
[1764172071925,0.002,2916.2,2916.1,10.15217366]
[1764172072149,0.002,2916.2,2916.1,10.0531146]
[1764172072352,0.002,2916.2,2916.1,10.15217366]
[1764172072761,0.002,2916.2,2916.1,10.84426796]
[1764172073448,0.002,2916.2,2916.1,14.27350564]
[1764172074267,0.0012,2916.2,2916.1,5.57348915]
[1764172074480,0.0012,2916.2,2916.1,3.42923768]
[1764172074765,0.0012,2916.2,2916.1,3.75029674]
[1764172074966,0.0012,2916.2,2916.1,13.80341134]
[1764172076357,0.0012,2916.2,2916.1,4.65939485]
[1764172076529,0.12944654,2917.8,2916.2,0.90129411]
[1764172076730,0.35566234,2917.7,2916.6,0.09905906]
[1764172076928,0.31726046,2917.6,2916.6,0.32105906]
[1764172077441,0.35566234,2917.7,2916.6,0.32105906]
[1764172077622,0.35566234,2917.7,2916.7,6.85706448]
[1764172078030,0.35566234,2917.7,2916.6,0.32105906]
[1764172078031,3.78302428,2917.7,2916.6,0.32105906]
[1764172078254,0.39124708,2917.6,2916.6,3.74970528]
[1764172078664,0.4841,2917.5,2916.6,3.74970528]
[1764172078863,0.4841,2917.5,2916.6,7.17835507]
[1764172079652,0.4841,2917.5,2916.9,0.09905906]
[1764172079851,0.61354654,2917.8,2917.2,0.09905906]
[1764172080150,0.61354654,2917.8,2917.0,0.222]
[1764172080350,0.4841,2917.7,2917.0,0.222]
[1764172080647,0.4725,2917.1,2916.1,0.09905906]
[1764172080849,0.2004,2916.8,2916.1,0.09905906]
[1764172081254,0.72559411,2917.7,2916.1,0.09905906]
[1764172081255,0.4841,2917.5,2916.9,0.09905906]
[1764172081479,0.4841,2917.5,2916.6,0.222]
[1764172081648,0.12944654,2917.8,2916.8,0.82465317]
[1764172081855,0.4841,2917.7,2917.0,0.09905906]
[1764172082184,0.4841,2917.7,2916.8,0.09905906]
[1764172082585,0.4841,2917.7,2917.0,0.09905906]
[1764172083282,0.4725,2917.1,2917.0,0.09905906]
[1764172084492,0.4725,2917.1,2917.0,3.52723869]
[1764172084854,0.4841,2917.5,2917.0,6.95541832]
[1764172085374,0.4841,2917.5,2917.0,3.52723708]
[1764172085575,0.4653,2917.1,2917.0,0.09905906]
[1764172085774,0.4653,2917.1,2916.7,3.4284948]
[1764172085984,0.9398,2917.1,2916.7,6.85702704]
[1764172086494,0.9398,2917.1,2916.7,3.4284948]
[1764172086691,0.4745,2917.0,2916.6,3.74968542]
[1764172086870,0.4653,2917.1,2916.6,7.17833521]
[1764172087196,0.184,2916.7,2916.6,3.42862636]
[1764172087411,0.184,2916.7,2916.1,0.222]
[1764172087412,0.6493,2916.7,2916.1,0.222]
[1764172087553,0.4745,2917.4,2916.2,0.4723]
[1764172087753,0.4745,2917.4,2916.1,0.3977]
[1764172087982,0.31791233,2917.3,2916.1,3.75025451]
[1764172088181,0.73992746,2917.2,2916.1,7.17949219]
[1764172088454,0.31797469,2917.1,2916.4,0.09905906]
[1764172088653,0.4745,2917.3,2916.2,1.37359411]
[1764172088654,0.4745,2917.7,2917.0,0.09905906]
[1764172088873,0.4745,2917.7,2916.7,0.222]
[1764172088874,0.31819537,2917.6,2916.7,0.222]
[1764172089157,0.31819537,2917.5,2916.7,0.222]
[1764172089469,0.6493,2916.8,2916.5,0.32105906]
[1764172089654,3.55668695,2917.8,2916.7,0.09905906]
[1764172089655,0.4745,2917.7,2916.7,0.09905906]
[1764172089859,0.4745,2917.7,2916.8,3.4284147]
[1764172089860,0.3183195,2917.6,2916.8,3.4284147]
[1764172090067,0.3183195,2917.5,2916.8,3.4284147]
[1764172090392,0.6493,2916.9,2916.7,3.42850318]
[1764172090593,0.2283,2916.8,2916.7,3.42850318]
[1764172090801,0.7028,2916.8,2916.3,0.09905906]
[1764172090998,0.7028,2916.8,2916.3,0.32105906]
[1764172090999,0.4629,2916.7,2916.3,0.32105906]
[1764172091189,0.9374,2916.7,2916.3,0.32105906]
[1764172091570,0.184,2916.9,2916.3,0.32105906]
[1764172091771,0.31832196,2917.0,2916.6,0.09905906]
[1764172091976,0.4745,2917.1,2916.7,3.42853224]
[1764172092408,0.4745,2917.6,2916.8,0.222]
[1764172092592,0.31845541,2917.5,2917.3,0.09905906]
[1764172092757,0.31845541,2917.4,2917.1,0.09905906]
[1764172092963,0.4745,2917.5,2917.1,0.09905906]
[1764172093162,0.31839802,2917.4,2917.1,0.09905906]
[1764172093435,0.4745,2917.5,2917.1,0.09905906]
[1764172093715,0.31850213,2917.4,2917.1,0.09905906]
[1764172093918,0.4745,2917.5,2917.1,0.09905906]
[1764172094091,0.479,2917.2,2917.1,0.09905906]
[1764172094412,0.479,2917.2,2917.0,3.42816239]
[1764172094787,0.9361,2917.2,2916.9,3.42824963]
[1764172095207,0.9361,2917.2,2916.8,3.74942852]
[1764172095379,0.002,2918.0,2917.1,0.6353]
[1764172095580,0.51756758,2917.9,2917.3,0.09905906]
[1764172095773,0.1987,2917.9,2917.1,1.36089411]
[1764172095977,0.1987,2917.9,2917.5,3.42759211]
[1764172096528,0.002,2917.5,2917.2,3.42793176]
[1764172096718,0.002,2917.5,2917.1,7.03179768]
[1764172097016,0.002,2917.5,2917.1,6.85609768]
[1764172097210,0.002,2917.5,2917.1,3.42803557]
[1764172097372,0.002,2917.5,2917.3,0.09905906]
[1764172097579,0.002,2917.5,2917.1,6.85609768]
[1764172097877,0.002,2917.5,2917.0,3.4281316]
[1764172097878,0.002,2917.5,2917.3,0.09905906]
[1764172098278,0.002,2917.5,2917.3,3.52681014]
[1764172098617,0.002,2917.5,2917.3,0.09905906]
[1764172098821,0.479,2917.4,2917.0,0.09905906]
[1764172098980,0.479,2917.4,2917.0,6.95537421]
[1764172098981,0.4782,2917.4,2917.0,6.95537421]
[1764172099181,0.002,2917.5,2917.1,0.1765]
[1764172099821,0.4591,2917.5,2917.0,0.09905906]
[1764172100129,0.4591,2917.5,2916.6,0.001]
[1764172100130,0.002,2917.5,2917.4,0.09905906]
[1764172102918,0.002,2917.5,2917.4,3.52676866]
[1764172103283,0.002,2917.5,2917.4,0.09905906]
[1764172103593,0.9381,2917.5,2917.1,0.09905906]
[1764172103919,0.0882,2917.4,2917.1,0.09905906]
[1764172104082,0.002,2917.5,2917.2,0.1765]
[1764172104283,0.002,2917.5,2917.4,3.4277096]
[1764172104999,0.002,2917.5,2917.4,3.8873096]
[1764172105320,0.002,2917.5,2917.4,3.4277096]
[1764172106934,0.002,2917.5,2917.3,3.52683684]
[1764172107226,0.8640308,2917.4,2916.9,0.09905906]
[1764172107386,0.4751,2917.3,2916.9,0.09905906]
[1764172108211,0.9322,2917.3,2916.7,3.42847923]
[1764172108420,0.0921,2917.0,2916.7,3.42847923]
[1764172108910,0.0921,2917.0,2916.7,6.85701147]
[1764172109225,0.222,2917.2,2916.9,0.09905906]
[1764172109406,0.4571,2917.2,2916.7,3.42847923]
[1764172109604,0.4571,2917.2,2916.7,6.85701147]
[1764172109917,0.6791,2917.2,2916.7,6.85701147]
[1764172110298,0.002,2917.5,2916.7,6.85701147]
[1764172110498,0.222,2917.2,2916.7,3.42847923]
[1764172110729,0.222,2917.2,2916.7,6.85701147]
[1764172110927,0.222,2917.2,2916.6,0.10005906]
[1764172111231,0.222,2917.2,2916.6,0.001]
[1764172111232,0.5672,2916.7,2916.6,0.001]
[1764172111435,0.88607371,2916.7,2916.6,0.001]
[1764172111645,1.34317371,2916.7,2916.6,0.001]
[1764172111852,0.72559411,2916.3,2914.9,0.09905906]
[1764172112156,0.5384,2915.0,2914.6,0.09905906]
[1764172112307,0.7604,2915.0,2914.3,6.96451984]
[1764172112495,0.7604,2915.0,2914.3,3.53316412]
[1764172112695,0.4571,2916.0,2914.9,0.4596]
[1764172112905,0.4571,2916.0,2914.4,0.4827]
[1764172112906,0.222,2916.0,2915.7,0.09905906]
[1764172113142,0.6791,2916.0,2915.1,0.09905906]
[1764172113321,0.31790292,2915.9,2914.4,0.4827]
[1764172113523,0.53990292,2915.8,2914.8,0.09905906]
[1764172113822,0.53990292,2915.7,2914.5,0.09905906]
[1764172114137,0.31790292,2915.6,2914.5,0.09905906]
[1764172114339,0.31790292,2915.5,2914.5,0.09905906]
[1764172114538,0.31790292,2915.5,2914.5,3.53006993]
[1764172114700,0.6791,2915.4,2914.3,0.00277996]
[1764172115045,0.4571,2915.4,2914.5,0.001]
[1764172115199,0.21271305,2915.3,2914.8,0.09905906]
[1764172116355,0.21271305,2915.3,2914.5,0.001]
[1764172116356,0.6777,2914.9,2914.5,0.001]
[1764172116855,0.222,2914.8,2914.5,0.001]
[1764172117306,0.4571,2915.4,2914.5,0.001]
[1764172117507,0.222,2915.3,2914.5,0.001]
[1764172118017,0.6777,2914.6,2914.5,0.001]
[1764172118218,0.8997,2914.6,2914.5,0.001]
[1764172118459,1.3568,2914.6,2914.5,0.001]
[1764172118918,0.6777,2914.6,2914.5,0.001]
[1764172119111,0.222,2914.6,2914.5,0.001]
[1764172119441,1.1581,2914.6,2914.5,0.001]
[1764172120264,0.1987,2914.9,2914.5,0.001]
[1764172120469,0.4571,2915.4,2914.5,0.001]
[1764172120762,0.222,2915.3,2914.7,3.43088482]
[1764172121260,0.4571,2915.4,2914.7,6.86176964]
[1764172121562,0.1987,2916.1,2914.8,0.09905906]
[1764172121749,0.4571,2915.8,2914.8,0.09905906]
[1764172122060,0.222,2915.7,2914.7,10.29265446]
[1764172122369,0.222,2915.7,2914.9,0.09905906]
[1764172122570,0.222,2915.6,2915.0,3.43053173]
[1764172122941,0.4571,2915.8,2915.0,3.43053173]